Workbook

Sheet HeroBasicEquipConfig
A1: ID | B1: ItemID | E1: lv | F1: profession | G1: Type | I1: AttType | J1: AttTypeLab | K1: AttValue | L1: disItems | M1: count
A2: int | B2: int | E2: int | F2: int | G2: int | I2: int[] | J2: int[] | K2: int[] | L2: int[] | M2: int[]
A4: ID 职业x10000+ 类型x1000+ 等级 | B4: 物品表的ID | C4: VLOOKUP 语言表中的实际值 (策划看) | D4: 升级 金币消耗 | E4: 等级 | F4: 职业 1.战士 2.法师 3.牧师 4.游侠 | G4: 装备类型 1:战靴 2:衣服 3:手套 4:头盔 5:项链 | H4: 品质 1:白色 2:绿色 3:蓝色 4:紫色 5:橙色 6:暗金 7:远古 | I4: 属性类型 1生命值 2攻击力 3防御力 4攻击速度 5暴击率 6暴击伤害 7闪避几率 8命中 9吸血 | J4: 动态文本描述 | K4: 标准属性值 (白色) | L4: 分解获得的道具 | M4: 对应数量 | N4: 备注
A5: =F5*10000+G5*1000+E5 -> 11010 | D5: 100 | E5: 10 | F5: 1 | G5: 1 | I5: 1;2;3 | K5: =_xlfn.CONCAT(Q5,";",R5,";",S5,";",T5) -> 100;50;10;20 | L5: 1001 | M5: 800 | Q5: 100 | R5: 50 | S5: 10 | T5: 20
A6: =F6*10000+G6*1000+E6 -> 11015 | D6: 150 | E6: 15 | F6: 1 | G6: 1 | I6: 1;2;3 | K6: =_xlfn.CONCAT(Q6,";",R6,";",S6,";",T6) -> 150;60;20;21 | L6: 1001 | M6: 800 | Q6: 150 | R6: 60 | S6: 20 | T6: 21
A7: 11020 | D7: 200 | E7: 20 | F7: 1 | G7: 1 | I7: 1;2;3 | K7: 200;70;30;22 | L7: 1001 | M7: 800 | Q7: 200 | R7: 70 | S7: 30 | T7: 22
A8: 11025 | D8: 250 | E8: 25 | F8: 1 | G8: 1 | I8: 1;2;3 | K8: 250;80;40;23 | L8: 1001 | M8: 800 | Q8: 250 | R8: 80 | S8: 40 | T8: 23
A9: 11030 | D9: 300 | E9: 30 | F9: 1 | G9: 1 | I9: 1;2;3 | K9: 300;90;50;24 | L9: 1001 | M9: 800 | Q9: 300 | R9: 90 | S9: 50 | T9: 24
A10: 11035 | D10: 350 | E10: 35 | F10: 1 | G10: 1 | I10: 1;2;3 | K10: 350;100;60;25 | L10: 1001 | M10: 800 | Q10: 350 | R10: 100 | S10: 60 | T10: 25
A11: 11040 | D11: 400 | E11: 40 | F11: 1 | G11: 1 | I11: 1;2;3 | K11: 400;110;70;26 | L11: 1001 | M11: 800 | Q11: 400 | R11: 110 | S11: 70 | T11: 26
A12: 11045 | D12: 450 | E12: 45 | F12: 1 | G12: 1 | I12: 1;2;3 | K12: 450;120;80;27 | L12: 1001 | M12: 800 | Q12: 450 | R12: 120 | S12: 80 | T12: 27
A13: 11050 | D13: 500 | E13: 50 | F13: 1 | G13: 1 | I13: 1;2;3 | K13: 500;130;90;28 | L13: 1001 | M13: 800 | Q13: 500 | R13: 130 | S13: 90 | T13: 28
A14: 11055 | D14: 550 | E14: 55 | F14: 1 | G14: 1 | I14: 1;2;3 | K14: 550;140;100;29 | L14: 1001 | M14: 800 | Q14: 550 | R14: 140 | S14: 100 | T14: 29
A15: 11060 | D15: 600 | E15: 60 | F15: 1 | G15: 1 | I15: 1;2;3 | K15: 600;150;110;30 | L15: 1001 | M15: 800 | Q15: 600 | R15: 150 | S15: 110 | T15: 30
A16: 11065 | D16: 650 | E16: 65 | F16: 1 | G16: 1 | I16: 1;2;3 | K16: 650;160;120;31 | L16: 1001 | M16: 800 | Q16: 650 | R16: 160 | S16: 120 | T16: 31
A17: 11070 | D17: 700 | E17: 70 | F17: 1 | G17: 1 | I17: 1;2;3 | K17: 700;170;130;32 | L17: 1001 | M17: 800 | Q17: 700 | R17: 170 | S17: 130 | T17: 32
A18: 11075 | D18: 750 | E18: 75 | F18: 1 | G18: 1 | I18: 1;2;3 | K18: 750;180;140;33 | L18: 1001 | M18: 800 | Q18: 750 | R18: 180 | S18: 140 | T18: 33
A19: 11080 | D19: 800 | E19: 80 | F19: 1 | G19: 1 | I19: 1;2;3 | K19: 800;190;150;34 | L19: 1001 | M19: 800 | Q19: 800 | R19: 190 | S19: 150 | T19: 34
A20: 11085 | D20: 850 | E20: 85 | F20: 1 | G20: 1 | I20: 1;2;3 | K20: 850;200;160;35 | L20: 1001 | M20: 800 | Q20: 850 | R20: 200 | S20: 160 | T20: 35
A21: 11090 | D21: 900 | E21: 90 | F21: 1 | G21: 1 | I21: 1;2;3 | K21: 900;210;170;36 | L21: 1001 | M21: 800 | Q21: 900 | R21: 210 | S21: 170 | T21: 36
A22: 11095 | D22: 950 | E22: 95 | F22: 1 | G22: 1 | I22: 1;2;3 | K22: 950;220;180;37 | L22: 1001 | M22: 800 | Q22: 950 | R22: 220 | S22: 180 | T22: 37
A23: 11100 | D23: 1000 | E23: 100 | F23: 1 | G23: 1 | I23: 1;2;3 | K23: 1000;230;190;38 | L23: 1001 | M23: 800 | Q23: 1000 | R23: 230 | S23: 190 | T23: 38
A24: 11105 | D24: 1050 | E24: 105 | F24: 1 | G24: 1 | I24: 1;2;3 | K24: 1050;240;200;39 | L24: 1001 | M24: 800 | Q24: 1050 | R24: 240 | S24: 200 | T24: 39
A25: 11110 | D25: 1100 | E25: 110 | F25: 1 | G25: 1 | I25: 1;2;3 | K25: 1100;250;210;40 | L25: 1001 | M25: 800 | Q25: 1100 | R25: 250 | S25: 210 | T25: 40
A26: 11115 | D26: 1150 | E26: 115 | F26: 1 | G26: 1 | I26: 1;2;3 | K26: 1150;260;220;41 | L26: 1001 | M26: 800 | Q26: 1150 | R26: 260 | S26: 220 | T26: 41
A27: 11120 | D27: 1200 | E27: 120 | F27: 1 | G27: 1 | I27: 1;2;3 | K27: 1200;270;230;42 | L27: 1001 | M27: 800 | Q27: 1200 | R27: 270 | S27: 230 | T27: 42
A28: 11125 | D28: 1250 | E28: 125 | F28: 1 | G28: 1 | I28: 1;2;3 | K28: 1250;280;240;43 | L28: 1001 | M28: 800 | Q28: 1250 | R28: 280 | S28: 240 | T28: 43
A29: 11130 | D29: 1300 | E29: 130 | F29: 1 | G29: 1 | I29: 1;2;3 | K29: 1300;290;250;44 | L29: 1001 | M29: 800 | Q29: 1300 | R29: 290 | S29: 250 | T29: 44
A30: 11135 | D30: 1350 | E30: 135 | F30: 1 | G30: 1 | I30: 1;2;3 | K30: 1350;300;260;45 | L30: 1001 | M30: 800 | Q30: 1350 | R30: 300 | S30: 260 | T30: 45
A31: 11140 | D31: 1400 | E31: 140 | F31: 1 | G31: 1 | I31: 1;2;3 | K31: 1400;310;270;46 | L31: 1001 | M31: 800 | Q31: 1400 | R31: 310 | S31: 270 | T31: 46
A32: 11145 | D32: 1450 | E32: 145 | F32: 1 | G32: 1 | I32: 1;2;3 | K32: 1450;320;280;47 | L32: 1001 | M32: 800 | Q32: 1450 | R32: 320 | S32: 280 | T32: 47
A33: 11150 | D33: 1500 | E33: 150 | F33: 1 | G33: 1 | I33: 1;2;3 | K33: 1500;330;290;48 | L33: 1001 | M33: 800 | Q33: 1500 | R33: 330 | S33: 290 | T33: 48
A34: 11155 | D34: 1550 | E34: 155 | F34: 1 | G34: 1 | I34: 1;2;3 | K34: 1550;340;300;49 | L34: 1001 | M34: 800 | Q34: 1550 | R34: 340 | S34: 300 | T34: 49
A35: 11160 | D35: 1600 | E35: 160 | F35: 1 | G35: 1 | I35: 1;2;3 | K35: 1600;350;310;50 | L35: 1001 | M35: 800 | Q35: 1600 | R35: 350 | S35: 310 | T35: 50
A36: 11165 | D36: 1650 | E36: 165 | F36: 1 | G36: 1 | I36: 1;2;3 | K36: 1650;360;320;51 | L36: 1001 | M36: 800 | Q36: 1650 | R36: 360 | S36: 320 | T36: 51
A37: 11170 | D37: 1700 | E37: 170 | F37: 1 | G37: 1 | I37: 1;2;3 | K37: 1700;370;330;52 | L37: 1001 | M37: 800 | Q37: 1700 | R37: 370 | S37: 330 | T37: 52
A38: 11175 | D38: 1750 | E38: 175 | F38: 1 | G38: 1 | I38: 1;2;3 | K38: =_xlfn.CONCAT(Q38,";",R38,";",S38,";",T38) -> 1750;380;340;53 | L38: 1001 | M38: 800 | Q38: 1750 | R38: 380 | S38: 340 | T38: 53
A39: 11180 | D39: 1800 | E39: 180 | F39: 1 | G39: 1 | I39: 1;2;3 | K39: 1800;390;350;54 | L39: 1001 | M39: 800 | Q39: 1800 | R39: 390 | S39: 350 | T39: 54
A40: 11185 | D40: 1850 | E40: 185 | F40: 1 | G40: 1 | I40: 1;2;3 | K40: 1850;400;360;55 | L40: 1001 | M40: 800 | Q40: 1850 | R40: 400 | S40: 360 | T40: 55
A41: 11190 | D41: 1900 | E41: 190 | F41: 1 | G41: 1 | I41: 1;2;3 | K41: 1900;410;370;56 | L41: 1001 | M41: 800 | Q41: 1900 | R41: 410 | S41: 370 | T41: 56
A42: 11195 | D42: 1950 | E42: 195 | F42: 1 | G42: 1 | I42: 1;2;3 | K42: 1950;420;380;57 | L42: 1001 | M42: 800 | Q42: 1950 | R42: 420 | S42: 380 | T42: 57
A43: 11200 | D43: 2000 | E43: 200 | F43: 1 | G43: 1 | I43: 1;2;3 | K43: 2000;430;390;58 | L43: 1001 | M43: 800 | Q43: 2000 | R43: 430 | S43: 390 | T43: 58
A44: 11205 | D44: 2050 | E44: 205 | F44: 1 | G44: 1 | I44: 1;2;3 | K44: 2050;440;400;59 | L44: 1001 | M44: 800 | Q44: 2050 | R44: 440 | S44: 400 | T44: 59
A45: 11210 | D45: 2100 | E45: 210 | F45: 1 | G45: 1 | I45: 1;2;3 | K45: 2100;450;410;60 | L45: 1001 | M45: 800 | Q45: 2100 | R45: 450 | S45: 410 | T45: 60
A46: 11215 | D46: 2150 | E46: 215 | F46: 1 | G46: 1 | I46: 1;2;3 | K46: 2150;460;420;61 | L46: 1001 | M46: 800 | Q46: 2150 | R46: 460 | S46: 420 | T46: 61
A47: 11220 | D47: 2200 | E47: 220 | F47: 1 | G47: 1 | I47: 1;2;3 | K47: 2200;470;430;62 | L47: 1001 | M47: 800 | Q47: 2200 | R47: 470 | S47: 430 | T47: 62
A48: 11225 | D48: 2250 | E48: 225 | F48: 1 | G48: 1 | I48: 1;2;3 | K48: 2250;480;440;63 | L48: 1001 | M48: 800 | Q48: 2250 | R48: 480 | S48: 440 | T48: 63
A49: 11230 | D49: 2300 | E49: 230 | F49: 1 | G49: 1 | I49: 1;2;3 | K49: 2300;490;450;64 | L49: 1001 | M49: 800 | Q49: 2300 | R49: 490 | S49: 450 | T49: 64
A50: 11235 | D50: 2350 | E50: 235 | F50: 1 | G50: 1 | I50: 1;2;3 | K50: 2350;500;460;65 | L50: 1001 | M50: 800 | Q50: 2350 | R50: 500 | S50: 460 | T50: 65
A51: 11240 | D51: 2400 | E51: 240 | F51: 1 | G51: 1 | I51: 1;2;3 | K51: 2400;510;470;66 | L51: 1001 | M51: 800 | Q51: 2400 | R51: 510 | S51: 470 | T51: 66
A52: 11245 | D52: 2450 | E52: 245 | F52: 1 | G52: 1 | I52: 1;2;3 | K52: 2450;520;480;67 | L52: 1001 | M52: 800 | Q52: 2450 | R52: 520 | S52: 480 | T52: 67
A53: 11250 | D53: 2500 | E53: 250 | F53: 1 | G53: 1 | I53: 1;2;3 | K53: 2500;530;490;68 | L53: 1001 | M53: 800 | Q53: 2500 | R53: 530 | S53: 490 | T53: 68
A54: 11255 | D54: 2550 | E54: 255 | F54: 1 | G54: 1 | I54: 1;2;3 | K54: 2550;540;500;69 | L54: 1001 | M54: 800 | Q54: 2550 | R54: 540 | S54: 500 | T54: 69
A55: 11260 | D55: 2600 | E55: 260 | F55: 1 | G55: 1 | I55: 1;2;3 | K55: 2600;550;510;70 | L55: 1001 | M55: 800 | Q55: 2600 | R55: 550 | S55: 510 | T55: 70
A56: 11265 | D56: 2650 | E56: 265 | F56: 1 | G56: 1 | I56: 1;2;3 | K56: 2650;560;520;71 | L56: 1001 | M56: 800 | Q56: 2650 | R56: 560 | S56: 520 | T56: 71
A57: 11270 | D57: 2700 | E57: 270 | F57: 1 | G57: 1 | I57: 1;2;3 | K57: 2700;570;530;72 | L57: 1001 | M57: 800 | Q57: 2700 | R57: 570 | S57: 530 | T57: 72
A58: 11275 | D58: 2750 | E58: 275 | F58: 1 | G58: 1 | I58: 1;2;3 | K58: 2750;580;540;73 | L58: 1001 | M58: 800 | Q58: 2750 | R58: 580 | S58: 540 | T58: 73
A59: 11280 | D59: 2800 | E59: 280 | F59: 1 | G59: 1 | I59: 1;2;3 | K59: 2800;590;550;74 | L59: 1001 | M59: 800 | Q59: 2800 | R59: 590 | S59: 550 | T59: 74
A60: 11285 | D60: 2850 | E60: 285 | F60: 1 | G60: 1 | I60: 1;2;3 | K60: 2850;600;560;75 | L60: 1001 | M60: 800 | Q60: 2850 | R60: 600 | S60: 560 | T60: 75
A61: 11290 | D61: 2900 | E61: 290 | F61: 1 | G61: 1 | I61: 1;2;3 | K61: 2900;610;570;76 | L61: 1001 | M61: 800 | Q61: 2900 | R61: 610 | S61: 570 | T61: 76
A62: 11295 | D62: 2950 | E62: 295 | F62: 1 | G62: 1 | I62: 1;2;3 | K62: 2950;620;580;77 | L62: 1001 | M62: 800 | Q62: 2950 | R62: 620 | S62: 580 | T62: 77
A63: 11300 | D63: 3000 | E63: 300 | F63: 1 | G63: 1 | I63: 1;2;3 | K63: 3000;630;590;78 | L63: 1001 | M63: 800 | Q63: 3000 | R63: 630 | S63: 590 | T63: 78
A64: 12010 | D64: 100 | E64: 10 | F64: 1 | G64: 2 | I64: 1;2;3 | K64: 100;50;10;20 | L64: 1001 | M64: 800 | Q64: 100 | R64: 50 | S64: 10 | T64: 20
A65: 12015 | D65: 150 | E65: 15 | F65: 1 | G65: 2 | I65: 1;2;3 | K65: 150;60;20;21 | L65: 1001 | M65: 800 | Q65: 150 | R65: 60 | S65: 20 | T65: 21
A66: 12020 | D66: 200 | E66: 20 | F66: 1 | G66: 2 | I66: 1;2;3 | K66: 200;70;30;22 | L66: 1001 | M66: 800 | Q66: 200 | R66: 70 | S66: 30 | T66: 22
A67: 12025 | D67: 250 | E67: 25 | F67: 1 | G67: 2 | I67: 1;2;3 | K67: 250;80;40;23 | L67: 1001 | M67: 800 | Q67: 250 | R67: 80 | S67: 40 | T67: 23
A68: 12030 | D68: 300 | E68: 30 | F68: 1 | G68: 2 | I68: 1;2;3 | K68: 300;90;50;24 | L68: 1001 | M68: 800 | Q68: 300 | R68: 90 | S68: 50 | T68: 24
A69: 12035 | D69: 350 | E69: 35 | F69: 1 | G69: 2 | I69: 1;2;3 | K69: 350;100;60;25 | L69: 1001 | M69: 800 | Q69: 350 | R69: 100 | S69: 60 | T69: 25
A70: =F70*10000+G70*1000+E70 -> 12040 | D70: 400 | E70: 40 | F70: 1 | G70: 2 | I70: 1;2;3 | K70: 400;110;70;26 | L70: 1001 | M70: 800 | Q70: 400 | R70: 110 | S70: 70 | T70: 26
A71: 12045 | D71: 450 | E71: 45 | F71: 1 | G71: 2 | I71: 1;2;3 | K71: 450;120;80;27 | L71: 1001 | M71: 800 | Q71: 450 | R71: 120 | S71: 80 | T71: 27
A72: 12050 | D72: 500 | E72: 50 | F72: 1 | G72: 2 | I72: 1;2;3 | K72: 500;130;90;28 | L72: 1001 | M72: 800 | Q72: 500 | R72: 130 | S72: 90 | T72: 28
A73: 12055 | D73: 550 | E73: 55 | F73: 1 | G73: 2 | I73: 1;2;3 | K73: 550;140;100;29 | L73: 1001 | M73: 800 | Q73: 550 | R73: 140 | S73: 100 | T73: 29
A74: 12060 | D74: 600 | E74: 60 | F74: 1 | G74: 2 | I74: 1;2;3 | K74: 600;150;110;30 | L74: 1001 | M74: 800 | Q74: 600 | R74: 150 | S74: 110 | T74: 30
A75: 12065 | D75: 650 | E75: 65 | F75: 1 | G75: 2 | I75: 1;2;3 | K75: =_xlfn.CONCAT(Q75,";",R75,";",S75,";",T75) -> 650;160;120;31 | L75: 1001 | M75: 800 | Q75: 650 | R75: 160 | S75: 120 | T75: 31
A76: 12070 | D76: 700 | E76: 70 | F76: 1 | G76: 2 | I76: 1;2;3 | K76: 700;170;130;32 | L76: 1001 | M76: 800 | Q76: 700 | R76: 170 | S76: 130 | T76: 32
A77: 12075 | D77: 750 | E77: 75 | F77: 1 | G77: 2 | I77: 1;2;3 | K77: 750;180;140;33 | L77: 1001 | M77: 800 | Q77: 750 | R77: 180 | S77: 140 | T77: 33
A78: 12080 | D78: 800 | E78: 80 | F78: 1 | G78: 2 | I78: 1;2;3 | K78: 800;190;150;34 | L78: 1001 | M78: 800 | Q78: 800 | R78: 190 | S78: 150 | T78: 34
A79: 12085 | D79: 850 | E79: 85 | F79: 1 | G79: 2 | I79: 1;2;3 | K79: 850;200;160;35 | L79: 1001 | M79: 800 | Q79: 850 | R79: 200 | S79: 160 | T79: 35
A80: 12090 | D80: 900 | E80: 90 | F80: 1 | G80: 2 | I80: 1;2;3 | K80: 900;210;170;36 | L80: 1001 | M80: 800 | Q80: 900 | R80: 210 | S80: 170 | T80: 36
A81: 12095 | D81: 950 | E81: 95 | F81: 1 | G81: 2 | I81: 1;2;3 | K81: 950;220;180;37 | L81: 1001 | M81: 800 | Q81: 950 | R81: 220 | S81: 180 | T81: 37
A82: 12100 | D82: 1000 | E82: 100 | F82: 1 | G82: 2 | I82: 1;2;3 | K82: 1000;230;190;38 | L82: 1001 | M82: 800 | Q82: 1000 | R82: 230 | S82: 190 | T82: 38
A83: 12105 | D83: 1050 | E83: 105 | F83: 1 | G83: 2 | I83: 1;2;3 | K83: 1050;240;200;39 | L83: 1001 | M83: 800 | Q83: 1050 | R83: 240 | S83: 200 | T83: 39
A84: 12110 | D84: 1100 | E84: 110 | F84: 1 | G84: 2 | I84: 1;2;3 | K84: 1100;250;210;40 | L84: 1001 | M84: 800 | Q84: 1100 | R84: 250 | S84: 210 | T84: 40
A85: 12115 | D85: 1150 | E85: 115 | F85: 1 | G85: 2 | I85: 1;2;3 | K85: 1150;260;220;41 | L85: 1001 | M85: 800 | Q85: 1150 | R85: 260 | S85: 220 | T85: 41
A86: 12120 | D86: 1200 | E86: 120 | F86: 1 | G86: 2 | I86: 1;2;3 | K86: 1200;270;230;42 | L86: 1001 | M86: 800 | Q86: 1200 | R86: 270 | S86: 230 | T86: 42
A87: 12125 | D87: 1250 | E87: 125 | F87: 1 | G87: 2 | I87: 1;2;3 | K87: 1250;280;240;43 | L87: 1001 | M87: 800 | Q87: 1250 | R87: 280 | S87: 240 | T87: 43
A88: 12130 | D88: 1300 | E88: 130 | F88: 1 | G88: 2 | I88: 1;2;3 | K88: 1300;290;250;44 | L88: 1001 | M88: 800 | Q88: 1300 | R88: 290 | S88: 250 | T88: 44
A89: 12135 | D89: 1350 | E89: 135 | F89: 1 | G89: 2 | I89: 1;2;3 | K89: 1350;300;260;45 | L89: 1001 | M89: 800 | Q89: 1350 | R89: 300 | S89: 260 | T89: 45
A90: 12140 | D90: 1400 | E90: 140 | F90: 1 | G90: 2 | I90: 1;2;3 | K90: 1400;310;270;46 | L90: 1001 | M90: 800 | Q90: 1400 | R90: 310 | S90: 270 | T90: 46
A91: 12145 | D91: 1450 | E91: 145 | F91: 1 | G91: 2 | I91: 1;2;3 | K91: 1450;320;280;47 | L91: 1001 | M91: 800 | Q91: 1450 | R91: 320 | S91: 280 | T91: 47
A92: 12150 | D92: 1500 | E92: 150 | F92: 1 | G92: 2 | I92: 1;2;3 | K92: 1500;330;290;48 | L92: 1001 | M92: 800 | Q92: 1500 | R92: 330 | S92: 290 | T92: 48
A93: 12155 | D93: 1550 | E93: 155 | F93: 1 | G93: 2 | I93: 1;2;3 | K93: 1550;340;300;49 | L93: 1001 | M93: 800 | Q93: 1550 | R93: 340 | S93: 300 | T93: 49
A94: 12160 | D94: 1600 | E94: 160 | F94: 1 | G94: 2 | I94: 1;2;3 | K94: 1600;350;310;50 | L94: 1001 | M94: 800 | Q94: 1600 | R94: 350 | S94: 310 | T94: 50
A95: 12165 | D95: 1650 | E95: 165 | F95: 1 | G95: 2 | I95: 1;2;3 | K95: 1650;360;320;51 | L95: 1001 | M95: 800 | Q95: 1650 | R95: 360 | S95: 320 | T95: 51
A96: 12170 | D96: 1700 | E96: 170 | F96: 1 | G96: 2 | I96: 1;2;3 | K96: 1700;370;330;52 | L96: 1001 | M96: 800 | Q96: 1700 | R96: 370 | S96: 330 | T96: 52
A97: 12175 | D97: 1750 | E97: 175 | F97: 1 | G97: 2 | I97: 1;2;3 | K97: 1750;380;340;53 | L97: 1001 | M97: 800 | Q97: 1750 | R97: 380 | S97: 340 | T97: 53
A98: 12180 | D98: 1800 | E98: 180 | F98: 1 | G98: 2 | I98: 1;2;3 | K98: 1800;390;350;54 | L98: 1001 | M98: 800 | Q98: 1800 | R98: 390 | S98: 350 | T98: 54
A99: 12185 | D99: 1850 | E99: 185 | F99: 1 | G99: 2 | I99: 1;2;3 | K99: 1850;400;360;55 | L99: 1001 | M99: 800 | Q99: 1850 | R99: 400 | S99: 360 | T99: 55
A100: 12190 | D100: 1900 | E100: 190 | F100: 1 | G100: 2 | I100: 1;2;3 | K100: 1900;410;370;56 | L100: 1001 | M100: 800 | Q100: 1900 | R100: 410 | S100: 370 | T100: 56
A101: 12195 | D101: 1950 | E101: 195 | F101: 1 | G101: 2 | I101: 1;2;3 | K101: 1950;420;380;57 | L101: 1001 | M101: 800 | Q101: 1950 | R101: 420 | S101: 380 | T101: 57
A102: 12200 | D102: 2000 | E102: 200 | F102: 1 | G102: 2 | I102: 1;2;3 | K102: 2000;430;390;58 | L102: 1001 | M102: 800 | Q102: 2000 | R102: 430 | S102: 390 | T102: 58
A103: 12205 | D103: 2050 | E103: 205 | F103: 1 | G103: 2 | I103: 1;2;3 | K103: 2050;440;400;59 | L103: 1001 | M103: 800 | Q103: 2050 | R103: 440 | S103: 400 | T103: 59
A104: 12210 | D104: 2100 | E104: 210 | F104: 1 | G104: 2 | I104: 1;2;3 | K104: 2100;450;410;60 | L104: 1001 | M104: 800 | Q104: 2100 | R104: 450 | S104: 410 | T104: 60
A105: 12215 | D105: 2150 | E105: 215 | F105: 1 | G105: 2 | I105: 1;2;3 | K105: 2150;460;420;61 | L105: 1001 | M105: 800 | Q105: 2150 | R105: 460 | S105: 420 | T105: 61
A106: 12220 | D106: 2200 | E106: 220 | F106: 1 | G106: 2 | I106: 1;2;3 | K106: 2200;470;430;62 | L106: 1001 | M106: 800 | Q106: 2200 | R106: 470 | S106: 430 | T106: 62
A107: 12225 | D107: 2250 | E107: 225 | F107: 1 | G107: 2 | I107: 1;2;3 | K107: 2250;480;440;63 | L107: 1001 | M107: 800 | Q107: 2250 | R107: 480 | S107: 440 | T107: 63
A108: 12230 | D108: 2300 | E108: 230 | F108: 1 | G108: 2 | I108: 1;2;3 | K108: 2300;490;450;64 | L108: 1001 | M108: 800 | Q108: 2300 | R108: 490 | S108: 450 | T108: 64
A109: 12235 | D109: 2350 | E109: 235 | F109: 1 | G109: 2 | I109: 1;2;3 | K109: 2350;500;460;65 | L109: 1001 | M109: 800 | Q109: 2350 | R109: 500 | S109: 460 | T109: 65
A110: 12240 | D110: 2400 | E110: 240 | F110: 1 | G110: 2 | I110: 1;2;3 | K110: 2400;510;470;66 | L110: 1001 | M110: 800 | Q110: 2400 | R110: 510 | S110: 470 | T110: 66
A111: 12245 | D111: 2450 | E111: 245 | F111: 1 | G111: 2 | I111: 1;2;3 | K111: 2450;520;480;67 | L111: 1001 | M111: 800 | Q111: 2450 | R111: 520 | S111: 480 | T111: 67
A112: 12250 | D112: 2500 | E112: 250 | F112: 1 | G112: 2 | I112: 1;2;3 | K112: 2500;530;490;68 | L112: 1001 | M112: 800 | Q112: 2500 | R112: 530 | S112: 490 | T112: 68
A113: 12255 | D113: 2550 | E113: 255 | F113: 1 | G113: 2 | I113: 1;2;3 | K113: 2550;540;500;69 | L113: 1001 | M113: 800 | Q113: 2550 | R113: 540 | S113: 500 | T113: 69
A114: 12260 | D114: 2600 | E114: 260 | F114: 1 | G114: 2 | I114: 1;2;3 | K114: 2600;550;510;70 | L114: 1001 | M114: 800 | Q114: 2600 | R114: 550 | S114: 510 | T114: 70
A115: 12265 | D115: 2650 | E115: 265 | F115: 1 | G115: 2 | I115: 1;2;3 | K115: 2650;560;520;71 | L115: 1001 | M115: 800 | Q115: 2650 | R115: 560 | S115: 520 | T115: 71
A116: 12270 | D116: 2700 | E116: 270 | F116: 1 | G116: 2 | I116: 1;2;3 | K116: 2700;570;530;72 | L116: 1001 | M116: 800 | Q116: 2700 | R116: 570 | S116: 530 | T116: 72
A117: 12275 | D117: 2750 | E117: 275 | F117: 1 | G117: 2 | I117: 1;2;3 | K117: 2750;580;540;73 | L117: 1001 | M117: 800 | Q117: 2750 | R117: 580 | S117: 540 | T117: 73
A118: 12280 | D118: 2800 | E118: 280 | F118: 1 | G118: 2 | I118: 1;2;3 | K118: 2800;590;550;74 | L118: 1001 | M118: 800 | Q118: 2800 | R118: 590 | S118: 550 | T118: 74
A119: 12285 | D119: 2850 | E119: 285 | F119: 1 | G119: 2 | I119: 1;2;3 | K119: 2850;600;560;75 | L119: 1001 | M119: 800 | Q119: 2850 | R119: 600 | S119: 560 | T119: 75
A120: 12290 | D120: 2900 | E120: 290 | F120: 1 | G120: 2 | I120: 1;2;3 | K120: 2900;610;570;76 | L120: 1001 | M120: 800 | Q120: 2900 | R120: 610 | S120: 570 | T120: 76
A121: 12295 | D121: 2950 | E121: 295 | F121: 1 | G121: 2 | I121: 1;2;3 | K121: 2950;620;580;77 | L121: 1001 | M121: 800 | Q121: 2950 | R121: 620 | S121: 580 | T121: 77
A122: 12300 | D122: 3000 | E122: 300 | F122: 1 | G122: 2 | I122: 1;2;3 | K122: 3000;630;590;78 | L122: 1001 | M122: 800 | Q122: 3000 | R122: 630 | S122: 590 | T122: 78
A123: 13010 | D123: 100 | E123: 10 | F123: 1 | G123: 3 | I123: 1;2;3 | K123: 100;50;10;20 | L123: 1001 | M123: 800 | Q123: 100 | R123: 50 | S123: 10 | T123: 20
A124: 13015 | D124: 150 | E124: 15 | F124: 1 | G124: 3 | I124: 1;2;3 | K124: 150;60;20;21 | L124: 1001 | M124: 800 | Q124: 150 | R124: 60 | S124: 20 | T124: 21
A125: 13020 | D125: 200 | E125: 20 | F125: 1 | G125: 3 | I125: 1;2;3 | K125: 200;70;30;22 | L125: 1001 | M125: 800 | Q125: 200 | R125: 70 | S125: 30 | T125: 22
A126: 13025 | D126: 250 | E126: 25 | F126: 1 | G126: 3 | I126: 1;2;3 | K126: 250;80;40;23 | L126: 1001 | M126: 800 | Q126: 250 | R126: 80 | S126: 40 | T126: 23
A127: 13030 | D127: 300 | E127: 30 | F127: 1 | G127: 3 | I127: 1;2;3 | K127: 300;90;50;24 | L127: 1001 | M127: 800 | Q127: 300 | R127: 90 | S127: 50 | T127: 24
A128: 13035 | D128: 350 | E128: 35 | F128: 1 | G128: 3 | I128: 1;2;3 | K128: 350;100;60;25 | L128: 1001 | M128: 800 | Q128: 350 | R128: 100 | S128: 60 | T128: 25
A129: 13040 | D129: 400 | E129: 40 | F129: 1 | G129: 3 | I129: 1;2;3 | K129: 400;110;70;26 | L129: 1001 | M129: 800 | Q129: 400 | R129: 110 | S129: 70 | T129: 26
A130: 13045 | D130: 450 | E130: 45 | F130: 1 | G130: 3 | I130: 1;2;3 | K130: 450;120;80;27 | L130: 1001 | M130: 800 | Q130: 450 | R130: 120 | S130: 80 | T130: 27
A131: 13050 | D131: 500 | E131: 50 | F131: 1 | G131: 3 | I131: 1;2;3 | K131: 500;130;90;28 | L131: 1001 | M131: 800 | Q131: 500 | R131: 130 | S131: 90 | T131: 28
A132: 13055 | D132: 550 | E132: 55 | F132: 1 | G132: 3 | I132: 1;2;3 | K132: 550;140;100;29 | L132: 1001 | M132: 800 | Q132: 550 | R132: 140 | S132: 100 | T132: 29
A133: 13060 | D133: 600 | E133: 60 | F133: 1 | G133: 3 | I133: 1;2;3 | K133: 600;150;110;30 | L133: 1001 | M133: 800 | Q133: 600 | R133: 150 | S133: 110 | T133: 30
A134: =F134*10000+G134*1000+E134 -> 13065 | D134: 650 | E134: 65 | F134: 1 | G134: 3 | I134: 1;2;3 | K134: 650;160;120;31 | L134: 1001 | M134: 800 | Q134: 650 | R134: 160 | S134: 120 | T134: 31
A135: 13070 | D135: 700 | E135: 70 | F135: 1 | G135: 3 | I135: 1;2;3 | K135: 700;170;130;32 | L135: 1001 | M135: 800 | Q135: 700 | R135: 170 | S135: 130 | T135: 32
A136: 13075 | D136: 750 | E136: 75 | F136: 1 | G136: 3 | I136: 1;2;3 | K136: 750;180;140;33 | L136: 1001 | M136: 800 | Q136: 750 | R136: 180 | S136: 140 | T136: 33
A137: 13080 | D137: 800 | E137: 80 | F137: 1 | G137: 3 | I137: 1;2;3 | K137: 800;190;150;34 | L137: 1001 | M137: 800 | Q137: 800 | R137: 190 | S137: 150 | T137: 34
A138: 13085 | D138: 850 | E138: 85 | F138: 1 | G138: 3 | I138: 1;2;3 | K138: 850;200;160;35 | L138: 1001 | M138: 800 | Q138: 850 | R138: 200 | S138: 160 | T138: 35
A139: 13090 | D139: 900 | E139: 90 | F139: 1 | G139: 3 | I139: 1;2;3 | K139: =_xlfn.CONCAT(Q139,";",R139,";",S139,";",T139) -> 900;210;170;36 | L139: 1001 | M139: 800 | Q139: 900 | R139: 210 | S139: 170 | T139: 36
A140: 13095 | D140: 950 | E140: 95 | F140: 1 | G140: 3 | I140: 1;2;3 | K140: 950;220;180;37 | L140: 1001 | M140: 800 | Q140: 950 | R140: 220 | S140: 180 | T140: 37
A141: 13100 | D141: 1000 | E141: 100 | F141: 1 | G141: 3 | I141: 1;2;3 | K141: 1000;230;190;38 | L141: 1001 | M141: 800 | Q141: 1000 | R141: 230 | S141: 190 | T141: 38
A142: 13105 | D142: 1050 | E142: 105 | F142: 1 | G142: 3 | I142: 1;2;3 | K142: 1050;240;200;39 | L142: 1001 | M142: 800 | Q142: 1050 | R142: 240 | S142: 200 | T142: 39
A143: 13110 | D143: 1100 | E143: 110 | F143: 1 | G143: 3 | I143: 1;2;3 | K143: 1100;250;210;40 | L143: 1001 | M143: 800 | Q143: 1100 | R143: 250 | S143: 210 | T143: 40
A144: 13115 | D144: 1150 | E144: 115 | F144: 1 | G144: 3 | I144: 1;2;3 | K144: 1150;260;220;41 | L144: 1001 | M144: 800 | Q144: 1150 | R144: 260 | S144: 220 | T144: 41
A145: 13120 | D145: 1200 | E145: 120 | F145: 1 | G145: 3 | I145: 1;2;3 | K145: 1200;270;230;42 | L145: 1001 | M145: 800 | Q145: 1200 | R145: 270 | S145: 230 | T145: 42
A146: 13125 | D146: 1250 | E146: 125 | F146: 1 | G146: 3 | I146: 1;2;3 | K146: 1250;280;240;43 | L146: 1001 | M146: 800 | Q146: 1250 | R146: 280 | S146: 240 | T146: 43
A147: 13130 | D147: 1300 | E147: 130 | F147: 1 | G147: 3 | I147: 1;2;3 | K147: 1300;290;250;44 | L147: 1001 | M147: 800 | Q147: 1300 | R147: 290 | S147: 250 | T147: 44
A148: 13135 | D148: 1350 | E148: 135 | F148: 1 | G148: 3 | I148: 1;2;3 | K148: 1350;300;260;45 | L148: 1001 | M148: 800 | Q148: 1350 | R148: 300 | S148: 260 | T148: 45
A149: 13140 | D149: 1400 | E149: 140 | F149: 1 | G149: 3 | I149: 1;2;3 | K149: 1400;310;270;46 | L149: 1001 | M149: 800 | Q149: 1400 | R149: 310 | S149: 270 | T149: 46
A150: 13145 | D150: 1450 | E150: 145 | F150: 1 | G150: 3 | I150: 1;2;3 | K150: 1450;320;280;47 | L150: 1001 | M150: 800 | Q150: 1450 | R150: 320 | S150: 280 | T150: 47
A151: 13150 | D151: 1500 | E151: 150 | F151: 1 | G151: 3 | I151: 1;2;3 | K151: 1500;330;290;48 | L151: 1001 | M151: 800 | Q151: 1500 | R151: 330 | S151: 290 | T151: 48
A152: 13155 | D152: 1550 | E152: 155 | F152: 1 | G152: 3 | I152: 1;2;3 | K152: 1550;340;300;49 | L152: 1001 | M152: 800 | Q152: 1550 | R152: 340 | S152: 300 | T152: 49
A153: 13160 | D153: 1600 | E153: 160 | F153: 1 | G153: 3 | I153: 1;2;3 | K153: 1600;350;310;50 | L153: 1001 | M153: 800 | Q153: 1600 | R153: 350 | S153: 310 | T153: 50
A154: 13165 | D154: 1650 | E154: 165 | F154: 1 | G154: 3 | I154: 1;2;3 | K154: 1650;360;320;51 | L154: 1001 | M154: 800 | Q154: 1650 | R154: 360 | S154: 320 | T154: 51
A155: 13170 | D155: 1700 | E155: 170 | F155: 1 | G155: 3 | I155: 1;2;3 | K155: 1700;370;330;52 | L155: 1001 | M155: 800 | Q155: 1700 | R155: 370 | S155: 330 | T155: 52
A156: 13175 | D156: 1750 | E156: 175 | F156: 1 | G156: 3 | I156: 1;2;3 | K156: 1750;380;340;53 | L156: 1001 | M156: 800 | Q156: 1750 | R156: 380 | S156: 340 | T156: 53
A157: 13180 | D157: 1800 | E157: 180 | F157: 1 | G157: 3 | I157: 1;2;3 | K157: 1800;390;350;54 | L157: 1001 | M157: 800 | Q157: 1800 | R157: 390 | S157: 350 | T157: 54
A158: 13185 | D158: 1850 | E158: 185 | F158: 1 | G158: 3 | I158: 1;2;3 | K158: 1850;400;360;55 | L158: 1001 | M158: 800 | Q158: 1850 | R158: 400 | S158: 360 | T158: 55
A159: 13190 | D159: 1900 | E159: 190 | F159: 1 | G159: 3 | I159: 1;2;3 | K159: 1900;410;370;56 | L159: 1001 | M159: 800 | Q159: 1900 | R159: 410 | S159: 370 | T159: 56
A160: 13195 | D160: 1950 | E160: 195 | F160: 1 | G160: 3 | I160: 1;2;3 | K160: 1950;420;380;57 | L160: 1001 | M160: 800 | Q160: 1950 | R160: 420 | S160: 380 | T160: 57
A161: 13200 | D161: 2000 | E161: 200 | F161: 1 | G161: 3 | I161: 1;2;3 | K161: 2000;430;390;58 | L161: 1001 | M161: 800 | Q161: 2000 | R161: 430 | S161: 390 | T161: 58
A162: 13205 | D162: 2050 | E162: 205 | F162: 1 | G162: 3 | I162: 1;2;3 | K162: 2050;440;400;59 | L162: 1001 | M162: 800 | Q162: 2050 | R162: 440 | S162: 400 | T162: 59
A163: 13210 | D163: 2100 | E163: 210 | F163: 1 | G163: 3 | I163: 1;2;3 | K163: 2100;450;410;60 | L163: 1001 | M163: 800 | Q163: 2100 | R163: 450 | S163: 410 | T163: 60
A164: 13215 | D164: 2150 | E164: 215 | F164: 1 | G164: 3 | I164: 1;2;3 | K164: 2150;460;420;61 | L164: 1001 | M164: 800 | Q164: 2150 | R164: 460 | S164: 420 | T164: 61
A165: 13220 | D165: 2200 | E165: 220 | F165: 1 | G165: 3 | I165: 1;2;3 | K165: 2200;470;430;62 | L165: 1001 | M165: 800 | Q165: 2200 | R165: 470 | S165: 430 | T165: 62
A166: 13225 | D166: 2250 | E166: 225 | F166: 1 | G166: 3 | I166: 1;2;3 | K166: 2250;480;440;63 | L166: 1001 | M166: 800 | Q166: 2250 | R166: 480 | S166: 440 | T166: 63
A167: 13230 | D167: 2300 | E167: 230 | F167: 1 | G167: 3 | I167: 1;2;3 | K167: 2300;490;450;64 | L167: 1001 | M167: 800 | Q167: 2300 | R167: 490 | S167: 450 | T167: 64
A168: 13235 | D168: 2350 | E168: 235 | F168: 1 | G168: 3 | I168: 1;2;3 | K168: 2350;500;460;65 | L168: 1001 | M168: 800 | Q168: 2350 | R168: 500 | S168: 460 | T168: 65
A169: 13240 | D169: 2400 | E169: 240 | F169: 1 | G169: 3 | I169: 1;2;3 | K169: 2400;510;470;66 | L169: 1001 | M169: 800 | Q169: 2400 | R169: 510 | S169: 470 | T169: 66
A170: 13245 | D170: 2450 | E170: 245 | F170: 1 | G170: 3 | I170: 1;2;3 | K170: 2450;520;480;67 | L170: 1001 | M170: 800 | Q170: 2450 | R170: 520 | S170: 480 | T170: 67
A171: 13250 | D171: 2500 | E171: 250 | F171: 1 | G171: 3 | I171: 1;2;3 | K171: 2500;530;490;68 | L171: 1001 | M171: 800 | Q171: 2500 | R171: 530 | S171: 490 | T171: 68
A172: 13255 | D172: 2550 | E172: 255 | F172: 1 | G172: 3 | I172: 1;2;3 | K172: 2550;540;500;69 | L172: 1001 | M172: 800 | Q172: 2550 | R172: 540 | S172: 500 | T172: 69
A173: 13260 | D173: 2600 | E173: 260 | F173: 1 | G173: 3 | I173: 1;2;3 | K173: 2600;550;510;70 | L173: 1001 | M173: 800 | Q173: 2600 | R173: 550 | S173: 510 | T173: 70
A174: 13265 | D174: 2650 | E174: 265 | F174: 1 | G174: 3 | I174: 1;2;3 | K174: 2650;560;520;71 | L174: 1001 | M174: 800 | Q174: 2650 | R174: 560 | S174: 520 | T174: 71
A175: 13270 | D175: 2700 | E175: 270 | F175: 1 | G175: 3 | I175: 1;2;3 | K175: 2700;570;530;72 | L175: 1001 | M175: 800 | Q175: 2700 | R175: 570 | S175: 530 | T175: 72
A176: 13275 | D176: 2750 | E176: 275 | F176: 1 | G176: 3 | I176: 1;2;3 | K176: 2750;580;540;73 | L176: 1001 | M176: 800 | Q176: 2750 | R176: 580 | S176: 540 | T176: 73
A177: 13280 | D177: 2800 | E177: 280 | F177: 1 | G177: 3 | I177: 1;2;3 | K177: 2800;590;550;74 | L177: 1001 | M177: 800 | Q177: 2800 | R177: 590 | S177: 550 | T177: 74
A178: 13285 | D178: 2850 | E178: 285 | F178: 1 | G178: 3 | I178: 1;2;3 | K178: 2850;600;560;75 | L178: 1001 | M178: 800 | Q178: 2850 | R178: 600 | S178: 560 | T178: 75
A179: 13290 | D179: 2900 | E179: 290 | F179: 1 | G179: 3 | I179: 1;2;3 | K179: 2900;610;570;76 | L179: 1001 | M179: 800 | Q179: 2900 | R179: 610 | S179: 570 | T179: 76
A180: 13295 | D180: 2950 | E180: 295 | F180: 1 | G180: 3 | I180: 1;2;3 | K180: 2950;620;580;77 | L180: 1001 | M180: 800 | Q180: 2950 | R180: 620 | S180: 580 | T180: 77
A181: 13300 | D181: 3000 | E181: 300 | F181: 1 | G181: 3 | I181: 1;2;3 | K181: 3000;630;590;78 | L181: 1001 | M181: 800 | Q181: 3000 | R181: 630 | S181: 590 | T181: 78
A182: 14010 | D182: 100 | E182: 10 | F182: 1 | G182: 4 | I182: 1;2;3 | K182: 100;50;10;20 | L182: 1001 | M182: 800 | Q182: 100 | R182: 50 | S182: 10 | T182: 20
A183: 14015 | D183: 150 | E183: 15 | F183: 1 | G183: 4 | I183: 1;2;3 | K183: 150;60;20;21 | L183: 1001 | M183: 800 | Q183: 150 | R183: 60 | S183: 20 | T183: 21
A184: 14020 | D184: 200 | E184: 20 | F184: 1 | G184: 4 | I184: 1;2;3 | K184: 200;70;30;22 | L184: 1001 | M184: 800 | Q184: 200 | R184: 70 | S184: 30 | T184: 22
A185: 14025 | D185: 250 | E185: 25 | F185: 1 | G185: 4 | I185: 1;2;3 | K185: 250;80;40;23 | L185: 1001 | M185: 800 | Q185: 250 | R185: 80 | S185: 40 | T185: 23
A186: 14030 | D186: 300 | E186: 30 | F186: 1 | G186: 4 | I186: 1;2;3 | K186: 300;90;50;24 | L186: 1001 | M186: 800 | Q186: 300 | R186: 90 | S186: 50 | T186: 24
A187: 14035 | D187: 350 | E187: 35 | F187: 1 | G187: 4 | I187: 1;2;3 | K187: 350;100;60;25 | L187: 1001 | M187: 800 | Q187: 350 | R187: 100 | S187: 60 | T187: 25
A188: 14040 | D188: 400 | E188: 40 | F188: 1 | G188: 4 | I188: 1;2;3 | K188: 400;110;70;26 | L188: 1001 | M188: 800 | Q188: 400 | R188: 110 | S188: 70 | T188: 26
A189: 14045 | D189: 450 | E189: 45 | F189: 1 | G189: 4 | I189: 1;2;3 | K189: 450;120;80;27 | L189: 1001 | M189: 800 | Q189: 450 | R189: 120 | S189: 80 | T189: 27
A190: 14050 | D190: 500 | E190: 50 | F190: 1 | G190: 4 | I190: 1;2;3 | K190: 500;130;90;28 | L190: 1001 | M190: 800 | Q190: 500 | R190: 130 | S190: 90 | T190: 28
A191: 14055 | D191: 550 | E191: 55 | F191: 1 | G191: 4 | I191: 1;2;3 | K191: 550;140;100;29 | L191: 1001 | M191: 800 | Q191: 550 | R191: 140 | S191: 100 | T191: 29
A192: 14060 | D192: 600 | E192: 60 | F192: 1 | G192: 4 | I192: 1;2;3 | K192: 600;150;110;30 | L192: 1001 | M192: 800 | Q192: 600 | R192: 150 | S192: 110 | T192: 30
A193: 14065 | D193: 650 | E193: 65 | F193: 1 | G193: 4 | I193: 1;2;3 | K193: 650;160;120;31 | L193: 1001 | M193: 800 | Q193: 650 | R193: 160 | S193: 120 | T193: 31
A194: 14070 | D194: 700 | E194: 70 | F194: 1 | G194: 4 | I194: 1;2;3 | K194: 700;170;130;32 | L194: 1001 | M194: 800 | Q194: 700 | R194: 170 | S194: 130 | T194: 32
A195: 14075 | D195: 750 | E195: 75 | F195: 1 | G195: 4 | I195: 1;2;3 | K195: 750;180;140;33 | L195: 1001 | M195: 800 | Q195: 750 | R195: 180 | S195: 140 | T195: 33
A196: 14080 | D196: 800 | E196: 80 | F196: 1 | G196: 4 | I196: 1;2;3 | K196: 800;190;150;34 | L196: 1001 | M196: 800 | Q196: 800 | R196: 190 | S196: 150 | T196: 34
A197: 14085 | D197: 850 | E197: 85 | F197: 1 | G197: 4 | I197: 1;2;3 | K197: 850;200;160;35 | L197: 1001 | M197: 800 | Q197: 850 | R197: 200 | S197: 160 | T197: 35
A198: =F198*10000+G198*1000+E198 -> 14090 | D198: 900 | E198: 90 | F198: 1 | G198: 4 | I198: 1;2;3 | K198: 900;210;170;36 | L198: 1001 | M198: 800 | Q198: 900 | R198: 210 | S198: 170 | T198: 36
A199: 14095 | D199: 950 | E199: 95 | F199: 1 | G199: 4 | I199: 1;2;3 | K199: 950;220;180;37 | L199: 1001 | M199: 800 | Q199: 950 | R199: 220 | S199: 180 | T199: 37
A200: 14100 | D200: 1000 | E200: 100 | F200: 1 | G200: 4 | I200: 1;2;3 | K200: 1000;230;190;38 | L200: 1001 | M200: 800 | Q200: 1000 | R200: 230 | S200: 190 | T200: 38
A201: 14105 | D201: 1050 | E201: 105 | F201: 1 | G201: 4 | I201: 1;2;3 | K201: 1050;240;200;39 | L201: 1001 | M201: 800 | Q201: 1050 | R201: 240 | S201: 200 | T201: 39
... 983 more rows
